[Event "Titled Tuesday Blitz July 18 Early 2023"]
[White "Samarth J Rao"]
[Black "Tikhonov, Viacheslav"]
[WhiteFideId "46652370"]
[BlackFideId "44196407"]
[WhiteElo "2259"]
[BlackElo "2542"]
[Result "1-0"]
[Round "3"]
[TimeControl "180+2"]
[Date "2023.07.18"]
[WhiteClock "0:00:06"]
[BlackClock "0:00:03"]
[Board "143"]

1. e4 {[%clk 0:03:00]}  c5 {[%clk 0:02:58]} 2. Nf3 {[%clk 0:03:00]}  Nc6 {[%clk 0:02:58]} 3. d4 {[%clk 0:03:00]}  cxd4 {[%clk 0:02:59]} 4. Nxd4 {[%clk 0:03:01]}  Nf6 {[%clk 0:03:00]} 5. Nc3 {[%clk 0:03:01]}  e5 {[%clk 0:03:01]} 6. Ndb5 {[%clk 0:03:01]}  d6 {[%clk 0:03:00]} 7. Bg5 {[%clk 0:03:01]}  a6 {[%clk 0:02:58]} 8. Na3 {[%clk 0:03:01]}  b5 {[%clk 0:02:52]} 9. Nd5 {[%clk 0:03:01]}  Be7 {[%clk 0:02:53]} 10. Bxf6 {[%clk 0:03:01]}  Bxf6 {[%clk 0:02:54]} 11. c3 {[%clk 0:03:01]}  Bg5 {[%clk 0:02:51]} 12. Nc2 {[%clk 0:03:01]}  Rb8 {[%clk 0:02:52]} 13. b4 {[%clk 0:02:55]}  O-O {[%clk 0:02:42]} 14. a4 {[%clk 0:02:53]}  f5 {[%clk 0:02:36]} 15. exf5 {[%clk 0:02:41]}  Bxf5 {[%clk 0:02:36]} 16. Nce3 {[%clk 0:02:41]}  Be6 {[%clk 0:02:25]} 17. Be2 {[%clk 0:02:41]}  Qd7 {[%clk 0:02:12]} 18. O-O {[%clk 0:02:38]}  Qf7 {[%clk 0:02:10]} 19. axb5 {[%clk 0:02:33]}  axb5 {[%clk 0:02:08]} 20. Ra6 {[%clk 0:02:32]}  Qb7 {[%clk 0:01:47]} 21. Rb6 {[%clk 0:02:13]}  Qc8 {[%clk 0:01:41]} 22. Rxb5 {[%clk 0:02:06]}  Qd7 {[%clk 0:01:34]} 23. Rxb8 {[%clk 0:01:35]}  Rxb8 {[%clk 0:01:34]} 24. Bg4 {[%clk 0:01:17]}  Ne7 {[%clk 0:01:28]} 25. Nxe7+ {[%clk 0:01:07]}  Qxe7 {[%clk 0:01:23]} 26. Bxe6+ {[%clk 0:01:03]}  Qxe6 {[%clk 0:01:24]} 27. Qd5 {[%clk 0:00:40]}  Kf7 {[%clk 0:01:25]} 28. Qf3+ {[%clk 0:00:33]}  Kg8 {[%clk 0:01:22]} 29. Ra1 {[%clk 0:00:31]}  e4 {[%clk 0:01:20]} 30. Qf5 {[%clk 0:00:27]}  Qxf5 {[%clk 0:01:16]} 31. Nxf5 {[%clk 0:00:28]}  Bf6 {[%clk 0:01:16]} 32. Nxd6 {[%clk 0:00:15]}  Bxc3 {[%clk 0:01:14]} 33. Rc1 {[%clk 0:00:15]}  Rxb4 {[%clk 0:01:13]} 34. g3 {[%clk 0:00:07]}  Rb3 {[%clk 0:00:55]} 35. Nxe4 {[%clk 0:00:07]}  Bd4 {[%clk 0:00:55]} 36. Rc7 {[%clk 0:00:07]}  h6 {[%clk 0:00:52]} 37. Kg2 {[%clk 0:00:07]}  Rb2 {[%clk 0:00:51]} 38. h4 {[%clk 0:00:07]}  Re2 {[%clk 0:00:51]} 39. Kf3 {[%clk 0:00:07]}  Rb2 {[%clk 0:00:50]} 40. Rd7 {[%clk 0:00:07]}  Be5 {[%clk 0:00:45]} 41. h5 {[%clk 0:00:07]}  Rb3+ {[%clk 0:00:45]} 42. Kg4 {[%clk 0:00:07]}  Rb5 {[%clk 0:00:45]} 43. f4 {[%clk 0:00:06]}  Bb2 {[%clk 0:00:43]} 44. Nd6 {[%clk 0:00:06]}  Rd5 {[%clk 0:00:40]} 45. Rd8+ {[%clk 0:00:06]}  Kh7 {[%clk 0:00:40]} 46. Nf7 {[%clk 0:00:03]}  Rxd8 {[%clk 0:00:38]} 47. Nxd8 {[%clk 0:00:04]}  g6 {[%clk 0:00:35]} 48. Ne6 {[%clk 0:00:04]}  Ba3 {[%clk 0:00:30]} 49. hxg6+ {[%clk 0:00:02]}  Kxg6 {[%clk 0:00:31]} 50. Nd4 {[%clk 0:00:02]}  Bc5 {[%clk 0:00:30]} 51. Ne6 {[%clk 0:00:02]}  Bf2 {[%clk 0:00:30]} 52. Nc7 {[%clk 0:00:01]}  Be1 {[%clk 0:00:30]} 53. Kf3 {[%clk 0:00:01]}  h5 {[%clk 0:00:29]} 54. Nd5 {[%clk 0:00:02]}  Ba5 {[%clk 0:00:21]} 55. Ne3 {[%clk 0:00:02]}  Bb6 {[%clk 0:00:20]} 56. Ng2 {[%clk 0:00:03]}  Bd8 {[%clk 0:00:20]} 57. Ke4 {[%clk 0:00:03]}  Ba5 {[%clk 0:00:17]} 58. Ne3 {[%clk 0:00:03]}  Be1 {[%clk 0:00:16]} 59. Nf1 {[%clk 0:00:03]}  h4 {[%clk 0:00:16]} 60. g4 {[%clk 0:00:03]}  h3 {[%clk 0:00:16]} 61. Kf3 {[%clk 0:00:03]}  Kf6 {[%clk 0:00:15]} 62. Ng3 {[%clk 0:00:03]}  Kg6 {[%clk 0:00:09]} 63. Nh1 {[%clk 0:00:02]}  Kf6 {[%clk 0:00:07]} 64. Nf2 {[%clk 0:00:03]}  h2 {[%clk 0:00:06]} 65. Nh1 {[%clk 0:00:02]}  Bd2 {[%clk 0:00:05]} 66. Kg3 {[%clk 0:00:02]}  Ke6 {[%clk 0:00:05]} 67. f5+ {[%clk 0:00:02]}  Kf6 {[%clk 0:00:04]} 68. Kxh2 {[%clk 0:00:03]}  Kg5 {[%clk 0:00:05]} 69. Kh3 {[%clk 0:00:04]}  Kf4 {[%clk 0:00:05]} 70. Ng3 {[%clk 0:00:05]}  Bc3 {[%clk 0:00:05]} 71. Ne2+ {[%clk 0:00:05]}  Kg5 {[%clk 0:00:03]} 72. Nxc3 {[%clk 0:00:06]} 1-0


[Site "https://www.chess.com"]

[Event "Titled Tuesday Blitz July 18 Early 2023"]
[White "Vaglio Munoz, Jaime"]
[Black "Ortega Amarelle, Mariano"]
[WhiteFideId "6500145"]
[BlackFideId "3504301"]
[WhiteElo "2239"]
[BlackElo "2533"]
[Result "0-1"]
[Round "3"]
[TimeControl "180+2"]
[Date "2023.07.18"]
[WhiteClock "0:00:00"]
[BlackClock "0:00:04"]
[Board "146"]

1. Nf3 {[%clk 0:02:58]}  d5 {[%clk 0:02:59]} 2. c4 {[%clk 0:02:57]}  d4 {[%clk 0:02:58]} 3. d3 {[%clk 0:02:56]}  Nc6 {[%clk 0:02:59]} 4. Bf4 {[%clk 0:02:49]}  f6 {[%clk 0:02:58]} 5. Bg3 {[%clk 0:02:46]}  e5 {[%clk 0:02:57]} 6. a3 {[%clk 0:02:46]}  a5 {[%clk 0:02:57]} 7. e3 {[%clk 0:02:45]}  Bc5 {[%clk 0:02:45]} 8. exd4 {[%clk 0:02:37]}  Nxd4 {[%clk 0:02:45]} 9. Nxd4 {[%clk 0:02:36]}  Bxd4 {[%clk 0:02:43]} 10. Nc3 {[%clk 0:02:37]}  Ne7 {[%clk 0:02:43]} 11. Be2 {[%clk 0:02:34]}  O-O {[%clk 0:02:44]} 12. O-O {[%clk 0:02:33]}  Nf5 {[%clk 0:02:43]} 13. Bf3 {[%clk 0:02:30]}  c6 {[%clk 0:02:42]} 14. Rb1 {[%clk 0:02:26]}  Be6 {[%clk 0:02:38]} 15. Ne2 {[%clk 0:02:25]}  Qd7 {[%clk 0:02:30]} 16. b4 {[%clk 0:02:24]}  axb4 {[%clk 0:02:28]} 17. axb4 {[%clk 0:02:24]}  Ra3 {[%clk 0:02:21]} 18. b5 {[%clk 0:02:23]}  Bc5 {[%clk 0:02:12]} 19. bxc6 {[%clk 0:02:22]}  bxc6 {[%clk 0:02:12]} 20. Nc1 {[%clk 0:02:21]}  Nd4 {[%clk 0:02:08]} 21. Nb3 {[%clk 0:01:59]}  Nxb3 {[%clk 0:01:40]} 22. Rxb3 {[%clk 0:02:00]}  Rfa8 {[%clk 0:01:30]} 23. Be4 {[%clk 0:01:33]}  f5 {[%clk 0:01:23]} 24. Bf3 {[%clk 0:01:31]}  f4 {[%clk 0:01:24]} 25. Bh4 {[%clk 0:01:30]}  Bf5 {[%clk 0:01:22]} 26. Be4 {[%clk 0:01:02]}  Bxe4 {[%clk 0:01:15]} 27. Rxa3 {[%clk 0:01:02]}  Rxa3 {[%clk 0:01:06]} 28. dxe4 {[%clk 0:01:03]}  Qxd1 {[%clk 0:01:06]} 29. Rxd1 {[%clk 0:01:02]}  Ra2 {[%clk 0:00:54]} 30. h3 {[%clk 0:01:00]}  h6 {[%clk 0:00:53]} 31. Bd8 {[%clk 0:00:57]}  Bxf2+ {[%clk 0:00:51]} 32. Kh1 {[%clk 0:00:55]}  Bd4 {[%clk 0:00:51]} 33. h4 {[%clk 0:00:52]}  h5 {[%clk 0:00:46]} 34. Be7 {[%clk 0:00:49]}  Kf7 {[%clk 0:00:44]} 35. Bd6 {[%clk 0:00:47]}  Ke6 {[%clk 0:00:44]} 36. Bf8 {[%clk 0:00:47]}  g6 {[%clk 0:00:44]} 37. Rb1 {[%clk 0:00:43]}  Rc2 {[%clk 0:00:28]} 38. c5 {[%clk 0:00:16]}  Bxc5 {[%clk 0:00:20]} 39. Bxc5 {[%clk 0:00:16]}  Rxc5 {[%clk 0:00:21]} 40. Rb7 {[%clk 0:00:13]}  Rc4 {[%clk 0:00:20]} 41. Rg7 {[%clk 0:00:11]}  Kf6 {[%clk 0:00:18]} 42. Rc7 {[%clk 0:00:10]}  Rc2 {[%clk 0:00:16]} 43. Kg1 {[%clk 0:00:10]}  Ke6 {[%clk 0:00:13]} 44. Rg7 {[%clk 0:00:09]}  Kf6 {[%clk 0:00:13]} 45. Rc7 {[%clk 0:00:08]}  Rc4 {[%clk 0:00:11]} 46. Kf2 {[%clk 0:00:07]}  Rxe4 {[%clk 0:00:10]} 47. Rxc6+ {[%clk 0:00:06]}  Kf5 {[%clk 0:00:11]} 48. Rc8 {[%clk 0:00:06]}  Re3 {[%clk 0:00:11]} 49. Rg8 {[%clk 0:00:04]}  Ra3 {[%clk 0:00:10]} 50. Kf1 {[%clk 0:00:04]}  e4 {[%clk 0:00:10]} 51. Kf2 {[%clk 0:00:04]}  Ra2+ {[%clk 0:00:10]} 52. Kg1 {[%clk 0:00:03]}  f3 {[%clk 0:00:10]} 53. Rf8+ {[%clk 0:00:03]}  Kg4 {[%clk 0:00:10]} 54. gxf3+ {[%clk 0:00:03]}  exf3 {[%clk 0:00:10]} 55. Rg8 {[%clk 0:00:04]}  Rg2+ {[%clk 0:00:07]} 56. Kh1 {[%clk 0:00:04]}  Kxh4 {[%clk 0:00:08]} 57. Rf8 {[%clk 0:00:03]}  Rg3 {[%clk 0:00:07]} 58. Rf4+ {[%clk 0:00:03]}  Kg5 {[%clk 0:00:06]} 59. Rf8 {[%clk 0:00:00]}  f2 {[%clk 0:00:04]} 0-1


[Site "https://www.chess.com"]

[Event "Titled Tuesday Blitz July 18 Early 2023"]
[White "Da Silva Junior, Sediney Mari"]
[Black "ArtemDyachuk"]
[WhiteFideId "2132079"]
[WhiteElo "2179"]
[BlackElo "2530"]
[Result "1-0"]
[Round "3"]
[TimeControl "180+2"]
[Date "2023.07.18"]
[WhiteClock "0:00:16"]
[BlackClock "0:00:02"]
[Board "148"]

1. e4 {[%clk 0:03:00]}  c6 {[%clk 0:02:58]} 2. d4 {[%clk 0:03:00]}  d5 {[%clk 0:02:58]} 3. f3 {[%clk 0:03:01]}  e6 {[%clk 0:02:54]} 4. Nc3 {[%clk 0:03:01]}  Qb6 {[%clk 0:02:52]} 5. Qd3 {[%clk 0:02:59]}  Nf6 {[%clk 0:02:45]} 6. e5 {[%clk 0:02:55]}  Nfd7 {[%clk 0:02:45]} 7. Nh3 {[%clk 0:02:54]}  c5 {[%clk 0:02:43]} 8. dxc5 {[%clk 0:02:52]}  Nxc5 {[%clk 0:02:33]} 9. Qb5+ {[%clk 0:02:41]}  Nc6 {[%clk 0:02:11]} 10. Qxb6 {[%clk 0:02:39]}  axb6 {[%clk 0:02:12]} 11. Bb5 {[%clk 0:02:34]}  Bd7 {[%clk 0:02:09]} 12. f4 {[%clk 0:02:34]}  Nb4 {[%clk 0:02:01]} 13. Bxd7+ {[%clk 0:02:27]}  Kxd7 {[%clk 0:02:02]} 14. Kd2 {[%clk 0:02:23]}  d4 {[%clk 0:02:02]} 15. Nb5 {[%clk 0:02:19]}  d3 {[%clk 0:01:17]} 16. Nd4 {[%clk 0:01:43]}  dxc2 {[%clk 0:01:12]} 17. Nxc2 {[%clk 0:01:40]}  Nb3+ {[%clk 0:01:10]} 18. axb3 {[%clk 0:01:19]}  Rc8 {[%clk 0:00:44]} 19. Nxb4 {[%clk 0:01:15]}  Bxb4+ {[%clk 0:00:45]} 20. Ke2 {[%clk 0:01:12]}  Rc2+ {[%clk 0:00:44]} 21. Kf3 {[%clk 0:01:06]}  Ke7 {[%clk 0:00:44]} 22. Ra7 {[%clk 0:01:02]}  Rb8 {[%clk 0:00:27]} 23. Rd1 {[%clk 0:01:02]}  Bc5 {[%clk 0:00:25]} 24. Be3 {[%clk 0:00:59]}  Bxe3 {[%clk 0:00:21]} 25. Kxe3 {[%clk 0:00:59]}  Rxb2 {[%clk 0:00:21]} 26. Nf2 {[%clk 0:00:44]}  Rxb3+ {[%clk 0:00:20]} 27. Rd3 {[%clk 0:00:44]}  Rb2 {[%clk 0:00:19]} 28. Rc3 {[%clk 0:00:43]}  Kd8 {[%clk 0:00:15]} 29. Ra4 {[%clk 0:00:41]}  b5 {[%clk 0:00:11]} 30. Rd4+ {[%clk 0:00:41]}  Ke8 {[%clk 0:00:11]} 31. Rc7 {[%clk 0:00:39]}  Rb3+ {[%clk 0:00:08]} 32. Nd3 {[%clk 0:00:39]}  Kf8 {[%clk 0:00:02]} 33. Rdd7 {[%clk 0:00:39]}  Kg8 {[%clk 0:00:03]} 34. Rxf7 {[%clk 0:00:39]}  Rd8 {[%clk 0:00:03]} 35. Rxg7+ {[%clk 0:00:39]}  Kf8 {[%clk 0:00:03]} 36. Rgd7 {[%clk 0:00:35]}  Rxd7 {[%clk 0:00:02]} 37. Rxd7 {[%clk 0:00:36]}  Ke8 {[%clk 0:00:02]} 38. Rxb7 {[%clk 0:00:36]}  Rb1 {[%clk 0:00:02]} 39. Rxh7 {[%clk 0:00:31]}  b4 {[%clk 0:00:02]} 40. Rb7 {[%clk 0:00:30]}  b3 {[%clk 0:00:02]} 41. Kd4 {[%clk 0:00:29]}  Rg1 {[%clk 0:00:01]} 42. Rxb3 {[%clk 0:00:26]}  Rxg2 {[%clk 0:00:02]} 43. Rb7 {[%clk 0:00:26]}  Rxh2 {[%clk 0:00:02]} 44. Nc5 {[%clk 0:00:24]}  Rd2+ {[%clk 0:00:02]} 45. Ke3 {[%clk 0:00:24]}  Rc2 {[%clk 0:00:02]} 46. Nxe6 {[%clk 0:00:24]}  Re2+ {[%clk 0:00:02]} 47. Kd4 {[%clk 0:00:18]}  Rd2+ {[%clk 0:00:01]} 48. Kc5 {[%clk 0:00:18]}  Rd5+ {[%clk 0:00:01]} 49. Kc4 {[%clk 0:00:18]}  Rc5+ {[%clk 0:00:01]} 50. Nxc5 {[%clk 0:00:18]}  Kd8 {[%clk 0:00:01]} 51. Kd5 {[%clk 0:00:16]}  Kc8 {[%clk 0:00:02]} 52. Kd6 {[%clk 0:00:16]}  Kd8 {[%clk 0:00:02]} 53. Rb8# {[%clk 0:00:16]} 1-0


[Site "https://www.chess.com"]

[Event "Titled Tuesday Blitz July 18 Early 2023"]
[White "Roberson, Peter T"]
[Black "Levitan, Ronit"]
[WhiteFideId "412384"]
[BlackFideId "2815109"]
[WhiteElo "2530"]
[BlackElo "2168"]
[Result "0-1"]
[Round "3"]
[TimeControl "180+2"]
[Date "2023.07.18"]
[WhiteClock "0:00:03"]
[BlackClock "0:00:18"]
[Board "149"]

1. d4 {[%clk 0:03:00]}  Nf6 {[%clk 0:02:58]} 2. c4 {[%clk 0:03:00]}  e6 {[%clk 0:02:58]} 3. Nf3 {[%clk 0:02:59]}  d5 {[%clk 0:02:58]} 4. g3 {[%clk 0:02:59]}  dxc4 {[%clk 0:02:57]} 5. Bg2 {[%clk 0:02:59]}  a6 {[%clk 0:02:55]} 6. Ne5 {[%clk 0:02:56]}  Bb4+ {[%clk 0:02:48]} 7. Nc3 {[%clk 0:02:56]}  Nd5 {[%clk 0:02:46]} 8. O-O {[%clk 0:02:53]}  Nxc3 {[%clk 0:02:36]} 9. bxc3 {[%clk 0:02:52]}  Bxc3 {[%clk 0:02:35]} 10. Ba3 {[%clk 0:02:37]}  Bxa1 {[%clk 0:02:25]} 11. Qxa1 {[%clk 0:02:38]}  Nd7 {[%clk 0:02:11]} 12. d5 {[%clk 0:02:22]}  Nxe5 {[%clk 0:02:06]} 13. Qxe5 {[%clk 0:02:22]}  f6 {[%clk 0:01:59]} 14. Qh5+ {[%clk 0:01:53]}  g6 {[%clk 0:01:54]} 15. Qh6 {[%clk 0:01:53]}  Kf7 {[%clk 0:01:51]} 16. Rd1 {[%clk 0:01:43]}  e5 {[%clk 0:01:41]} 17. d6 {[%clk 0:01:20]}  Be6 {[%clk 0:01:41]} 18. f4 {[%clk 0:01:10]}  cxd6 {[%clk 0:01:37]} 19. fxe5 {[%clk 0:01:01]}  Qb6+ {[%clk 0:01:36]} 20. Kh1 {[%clk 0:00:59]}  dxe5 {[%clk 0:01:36]} 21. h4 {[%clk 0:00:47]}  Rad8 {[%clk 0:01:35]} 22. Rf1 {[%clk 0:00:47]}  Bd5 {[%clk 0:01:08]} 23. e4 {[%clk 0:00:41]}  Be6 {[%clk 0:01:04]} 24. h5 {[%clk 0:00:37]}  Bc8 {[%clk 0:01:01]} 25. Be7 {[%clk 0:00:29]}  c3 {[%clk 0:00:37]} 26. Bxf6 {[%clk 0:00:23]}  Qxf6 {[%clk 0:00:34]} 27. Qc1 {[%clk 0:00:13]}  Qxf1+ {[%clk 0:00:30]} 28. Qxf1+ {[%clk 0:00:12]}  Kg7 {[%clk 0:00:29]} 29. Qc4 {[%clk 0:00:08]}  Rd1+ {[%clk 0:00:21]} 30. Kh2 {[%clk 0:00:08]}  Rhd8 {[%clk 0:00:18]} 31. Qxc3 {[%clk 0:00:07]}  Kf6 {[%clk 0:00:18]} 32. h6 {[%clk 0:00:03]}  Be6 {[%clk 0:00:18]} 33. Qf3+ {[%clk 0:00:03]}  Ke7 {[%clk 0:00:18]} 34. Qc3 {[%clk 0:00:04]}  b5 {[%clk 0:00:18]} 35. Qxe5 {[%clk 0:00:04]}  R8d2 {[%clk 0:00:17]} 36. Qg7+ {[%clk 0:00:04]}  Kd6 {[%clk 0:00:17]} 37. Qxh7 {[%clk 0:00:04]}  Rxa2 {[%clk 0:00:16]} 38. Qa7 {[%clk 0:00:02]}  Rdd2 {[%clk 0:00:16]} 39. Qb6+ {[%clk 0:00:02]}  Ke5 {[%clk 0:00:16]} 40. Qc7+ {[%clk 0:00:02]}  Kf6 {[%clk 0:00:16]} 41. Qf4+ {[%clk 0:00:02]}  Ke7 {[%clk 0:00:16]} 42. Qc7+ {[%clk 0:00:02]}  Bd7 {[%clk 0:00:17]} 43. Qe5+ {[%clk 0:00:02]}  Kd8 {[%clk 0:00:17]} 44. Qb8+ {[%clk 0:00:02]}  Ke7 {[%clk 0:00:18]} 45. Qe5+ {[%clk 0:00:02]}  Kd8 {[%clk 0:00:18]} 46. Qb8+ {[%clk 0:00:02]}  Bc8 {[%clk 0:00:18]} 47. Qb6+ {[%clk 0:00:03]}  Kd7 {[%clk 0:00:19]} 48. Qa7+ {[%clk 0:00:02]}  Ke6 {[%clk 0:00:18]} 49. h7 {[%clk 0:00:02]}  Rxg2+ {[%clk 0:00:18]} 50. Kh3 {[%clk 0:00:03]}  Ke5+ {[%clk 0:00:18]} 51. Kh4 {[%clk 0:00:02]}  g5+ {[%clk 0:00:18]} 52. Kxg5 {[%clk 0:00:02]}  Rxg3+ {[%clk 0:00:18]} 53. Kh6 {[%clk 0:00:03]}  Rh2# {[%clk 0:00:18]} 0-1


[Site "https://www.chess.com"]

[Event "Titled Tuesday Blitz July 18 Early 2023"]
[White "Horokoskii"]
[Black "AyMitecK"]
[WhiteElo "2130"]
[BlackElo "2528"]
[Result "0-1"]
[Round "3"]
[TimeControl "180+2"]
[Date "2023.07.18"]
[WhiteClock "0:00:00"]
[BlackClock "0:01:01"]
[Board "150"]

1. d4 {[%clk 0:03:00]}  Nf6 {[%clk 0:02:59]} 2. c4 {[%clk 0:02:55]}  e6 {[%clk 0:02:59]} 3. Nc3 {[%clk 0:02:55]}  d5 {[%clk 0:02:59]} 4. cxd5 {[%clk 0:02:54]}  exd5 {[%clk 0:02:59]} 5. Bg5 {[%clk 0:02:54]}  Be7 {[%clk 0:03:00]} 6. e3 {[%clk 0:02:54]}  c6 {[%clk 0:03:00]} 7. Qc2 {[%clk 0:02:53]}  Nbd7 {[%clk 0:02:53]} 8. Bd3 {[%clk 0:02:53]}  Nf8 {[%clk 0:02:53]} 9. Nge2 {[%clk 0:02:53]}  Ne6 {[%clk 0:02:54]} 10. Bh4 {[%clk 0:02:53]}  g6 {[%clk 0:02:52]} 11. O-O {[%clk 0:02:51]}  O-O {[%clk 0:02:50]} 12. f3 {[%clk 0:02:52]}  Ng7 {[%clk 0:02:50]} 13. Rad1 {[%clk 0:02:49]}  Nf5 {[%clk 0:02:46]} 14. Bf2 {[%clk 0:02:49]}  Re8 {[%clk 0:02:40]} 15. Rfe1 {[%clk 0:02:48]}  Bb4 {[%clk 0:02:38]} 16. a3 {[%clk 0:02:44]}  Ba5 {[%clk 0:02:31]} 17. b4 {[%clk 0:02:43]}  Bc7 {[%clk 0:02:30]} 18. e4 {[%clk 0:02:42]}  dxe4 {[%clk 0:02:28]} 19. fxe4 {[%clk 0:02:42]}  Bxh2+ {[%clk 0:02:16]} 20. Kxh2 {[%clk 0:02:36]}  Ng4+ {[%clk 0:02:15]} 21. Kg1 {[%clk 0:02:36]}  Nxf2 {[%clk 0:02:04]} 22. Kxf2 {[%clk 0:02:33]}  Qh4+ {[%clk 0:02:03]} 23. Kg1 {[%clk 0:02:28]}  Ne3 {[%clk 0:02:01]} 24. Qd2 {[%clk 0:02:24]}  Nxd1 {[%clk 0:01:48]} 25. Rxd1 {[%clk 0:02:14]}  Bg4 {[%clk 0:01:47]} 26. Rf1 {[%clk 0:02:09]}  Bxe2 {[%clk 0:01:44]} 27. Qxe2 {[%clk 0:02:03]}  Re7 {[%clk 0:01:42]} 28. Qf3 {[%clk 0:01:58]}  Rd8 {[%clk 0:01:40]} 29. d5 {[%clk 0:01:55]}  f5 {[%clk 0:01:33]} 30. g3 {[%clk 0:00:45]}  Qf6 {[%clk 0:01:31]} 31. Bc4 {[%clk 0:00:44]}  Qd4+ {[%clk 0:01:30]} 32. Kh2 {[%clk 0:00:39]}  Qxc4 {[%clk 0:01:28]} 33. exf5 {[%clk 0:00:37]}  Rf7 {[%clk 0:01:26]} 34. g4 {[%clk 0:00:19]}  cxd5 {[%clk 0:01:25]} 35. Ne2 {[%clk 0:00:16]}  d4 {[%clk 0:01:21]} 36. Nf4 {[%clk 0:00:16]}  d3 {[%clk 0:01:16]} 37. Rd1 {[%clk 0:00:11]}  d2 {[%clk 0:01:13]} 38. Qe3 {[%clk 0:00:09]}  Qd4 {[%clk 0:01:10]} 39. Qg3 {[%clk 0:00:04]}  Qd6 {[%clk 0:01:01]} 40. Qf3 {[%clk 0:00:00]}  g5 {[%clk 0:01:01]} 0-1


[Site "https://www.chess.com"]

[Event "Titled Tuesday Blitz July 18 Early 2023"]
[White "Rangel, Daniel"]
[Black "Floresvillar Gonzalez, Luis Migu"]
[WhiteFideId "2124475"]
[BlackFideId "5100542"]
[WhiteElo "2528"]
[BlackElo "2077"]
[Result "1-0"]
[Round "3"]
[TimeControl "180+2"]
[Date "2023.07.18"]
[WhiteClock "0:00:53"]
[BlackClock "0:00:06"]
[Board "151"]

1. d4 {[%clk 0:03:00]}  d5 {[%clk 0:02:59]} 2. c4 {[%clk 0:03:01]}  c6 {[%clk 0:02:59]} 3. Nc3 {[%clk 0:02:59]}  Nf6 {[%clk 0:02:59]} 4. Bg5 {[%clk 0:02:59]}  Ne4 {[%clk 0:02:58]} 5. Nxe4 {[%clk 0:02:57]}  dxe4 {[%clk 0:02:58]} 6. Qc2 {[%clk 0:02:46]}  Bf5 {[%clk 0:02:56]} 7. Be3 {[%clk 0:02:40]}  Bg6 {[%clk 0:02:50]} 8. h4 {[%clk 0:02:39]}  h5 {[%clk 0:02:48]} 9. Nh3 {[%clk 0:02:39]}  e6 {[%clk 0:02:40]} 10. Nf4 {[%clk 0:02:37]}  Bf5 {[%clk 0:02:40]} 11. g3 {[%clk 0:02:38]}  g6 {[%clk 0:02:33]} 12. Bg2 {[%clk 0:02:37]}  Bb4+ {[%clk 0:02:29]} 13. Kf1 {[%clk 0:02:23]}  Na6 {[%clk 0:02:25]} 14. Bxe4 {[%clk 0:02:20]}  Bxe4 {[%clk 0:02:19]} 15. Qxe4 {[%clk 0:02:21]}  Qe7 {[%clk 0:02:12]} 16. a3 {[%clk 0:02:16]}  Bd6 {[%clk 0:02:10]} 17. b4 {[%clk 0:02:15]}  Nc7 {[%clk 0:01:54]} 18. Nd3 {[%clk 0:02:08]}  Qf8 {[%clk 0:01:44]} 19. b5 {[%clk 0:01:52]}  Bxa3 {[%clk 0:00:53]} 20. bxc6 {[%clk 0:01:50]}  b6 {[%clk 0:00:53]} 21. c5 {[%clk 0:01:36]}  bxc5 {[%clk 0:00:51]} 22. Rxa3 {[%clk 0:01:33]}  cxd4 {[%clk 0:00:51]} 23. Bxd4 {[%clk 0:01:29]}  Qxa3 {[%clk 0:00:45]} 24. Bxh8 {[%clk 0:01:27]}  O-O-O {[%clk 0:00:45]} 25. Bf6 {[%clk 0:01:23]}  Rd5 {[%clk 0:00:44]} 26. Kg2 {[%clk 0:01:22]}  Qd6 {[%clk 0:00:28]} 27. Ra1 {[%clk 0:01:17]}  Qxc6 {[%clk 0:00:26]} 28. Rxa7 {[%clk 0:01:12]}  Rc5 {[%clk 0:00:18]} 29. Qxc6 {[%clk 0:01:10]}  Rxc6 {[%clk 0:00:18]} 30. Be5 {[%clk 0:01:05]}  Nd5 {[%clk 0:00:14]} 31. Rxf7 {[%clk 0:01:03]}  Rc2 {[%clk 0:00:14]} 32. Nf4 {[%clk 0:00:57]}  Nxf4+ {[%clk 0:00:12]} 33. Bxf4 {[%clk 0:00:56]}  Rxe2 {[%clk 0:00:13]} 34. Rf6 {[%clk 0:00:54]}  e5 {[%clk 0:00:12]} 35. Be3 {[%clk 0:00:54]}  e4 {[%clk 0:00:12]} 36. Rxg6 {[%clk 0:00:54]}  Kd7 {[%clk 0:00:12]} 37. Rg5 {[%clk 0:00:55]}  Ke6 {[%clk 0:00:12]} 38. Rxh5 {[%clk 0:00:55]}  Kf7 {[%clk 0:00:12]} 39. Rg5 {[%clk 0:00:55]}  Kf6 {[%clk 0:00:11]} 40. h5 {[%clk 0:00:55]}  Rxe3 {[%clk 0:00:06]} 41. Rg6+ {[%clk 0:00:53]} 1-0


[Site "https://www.chess.com"]

[Event "Titled Tuesday Blitz July 18 Early 2023"]
[White "Bilan, Danila"]
[Black "ivana_999"]
[WhiteFideId "24161918"]
[WhiteElo "2522"]
[BlackElo "1982"]
[Result "1-0"]
[Round "3"]
[TimeControl "180+2"]
[Date "2023.07.18"]
[WhiteClock "0:01:26"]
[BlackClock "0:00:30"]
[Board "155"]

1. d4 {[%clk 0:03:00]}  Nf6 {[%clk 0:02:58]} 2. Nf3 {[%clk 0:03:00]}  d5 {[%clk 0:02:55]} 3. c4 {[%clk 0:03:00]}  c5 {[%clk 0:02:56]} 4. cxd5 {[%clk 0:02:53]}  cxd4 {[%clk 0:02:54]} 5. Qxd4 {[%clk 0:02:50]}  Qxd5 {[%clk 0:02:53]} 6. Nc3 {[%clk 0:02:46]}  Qxd4 {[%clk 0:02:52]} 7. Nxd4 {[%clk 0:02:47]}  a6 {[%clk 0:02:52]} 8. Bf4 {[%clk 0:02:44]}  Nbd7 {[%clk 0:02:47]} 9. Nf3 {[%clk 0:02:38]}  e6 {[%clk 0:02:36]} 10. g3 {[%clk 0:02:34]}  b5 {[%clk 0:02:34]} 11. Bg2 {[%clk 0:02:31]}  Bb7 {[%clk 0:02:34]} 12. O-O {[%clk 0:02:31]}  Be7 {[%clk 0:02:30]} 13. Rfd1 {[%clk 0:02:25]}  O-O {[%clk 0:02:27]} 14. Ne5 {[%clk 0:02:20]}  Bxg2 {[%clk 0:02:21]} 15. Nxd7 {[%clk 0:02:19]}  Nxd7 {[%clk 0:01:49]} 16. Rxd7 {[%clk 0:02:17]}  b4 {[%clk 0:01:40]} 17. Kxg2 {[%clk 0:02:03]}  bxc3 {[%clk 0:01:29]} 18. Rxe7 {[%clk 0:02:01]}  cxb2 {[%clk 0:01:24]} 19. Rb1 {[%clk 0:02:00]}  Rac8 {[%clk 0:01:18]} 20. Rxb2 {[%clk 0:01:58]}  Rc6 {[%clk 0:01:17]} 21. Ra7 {[%clk 0:01:54]}  h6 {[%clk 0:01:10]} 22. a4 {[%clk 0:01:49]}  Rd8 {[%clk 0:01:00]} 23. a5 {[%clk 0:01:43]}  Rf8 {[%clk 0:00:55]} 24. Rb6 {[%clk 0:01:30]}  Rfc8 {[%clk 0:00:38]} 25. Raxa6 {[%clk 0:01:26]}  Rxb6 {[%clk 0:00:38]} 26. Rxb6 {[%clk 0:01:27]}  Ra8 {[%clk 0:00:37]} 27. Rb8+ {[%clk 0:01:25]}  Rxb8 {[%clk 0:00:37]} 28. Bxb8 {[%clk 0:01:26]}  Kf8 {[%clk 0:00:36]} 29. a6 {[%clk 0:01:27]}  Ke7 {[%clk 0:00:36]} 30. a7 {[%clk 0:01:28]}  Kf6 {[%clk 0:00:36]} 31. a8=Q {[%clk 0:01:29]}  Kg6 {[%clk 0:00:36]} 32. Qe4+ {[%clk 0:01:28]}  Kf6 {[%clk 0:00:35]} 33. Be5+ {[%clk 0:01:28]}  Ke7 {[%clk 0:00:34]} 34. Qb7+ {[%clk 0:01:28]}  Kf8 {[%clk 0:00:30]} 35. Qc8+ {[%clk 0:01:25]}  Ke7 {[%clk 0:00:29]} 36. Qc7+ {[%clk 0:01:26]}  Kf8 {[%clk 0:00:30]} 37. Qd8# {[%clk 0:01:26]} 1-0


[Site "https://www.chess.com"]